[Event "Esbjerg Efterår 2021 - Esbjergmesterskabet"]
[Site "Esbjerg, Denmark"]
[Date "2021.10.22"]
[Round "2.6"]
[White "Schou-Jørgensen, Jan"]
[Black "Jensen, Lars"]
[Result "1/2-1/2"]
[TimeControl "1.-3. 20 min + 5 sek, 4.-7. 90 min + 30 sek"]
[WhiteElo "1722"]
[BlackElo "1546"]

1. d4 {[%clk 00:20:04]} {[%emt 00:00:06]} Nf6 {[%clk 00:20:07]} {[%emt
00:00:04]} 2. Nf3 {[%clk 00:20:00]} {[%emt 00:00:09]} g6 {[%clk 00:20:10]}
{[%emt 00:00:02]} 3. g3 {[%clk 00:19:22]} {[%emt 00:00:42]} Bg7 {[%clk
00:20:12]} {[%emt 00:00:03]} 4. c4 {[%clk 00:19:18]} {[%emt 00:00:09]} d6
{[%clk 00:20:08]} {[%emt 00:00:09]} 5. Nc3 {[%clk 00:19:14]} {[%emt 00:00:09]}
Nc6 {[%clk 00:19:43]} {[%emt 00:00:30]} 6. Bg2 {[%clk 00:18:45]} {[%emt
00:00:33]} O-O {[%clk 00:19:36]} {[%emt 00:00:14]} 7. O-O {[%clk 00:17:53]}
{[%emt 00:00:57]} a6 {[%clk 00:19:05]} {[%emt 00:00:36]} 8. e4 {[%clk
00:16:23]} {[%emt 00:01:34]} Bg4 {[%clk 00:18:37]} {[%emt 00:00:33]} 9. h3
{[%clk 00:15:52]} {[%emt 00:00:37]} Bxf3 {[%clk 00:18:39]} {[%emt 00:00:02]} 10.
Bxf3 {[%clk 00:15:49]} {[%emt 00:00:07]} e5 {[%clk 00:18:27]} {[%emt 00:00:19]}
11. d5 {[%clk 00:13:57]} {[%emt 00:01:57]} Nd4 {[%clk 00:18:30]} {[%emt
00:00:01]} 12. Bg2 {[%clk 00:13:30]} {[%emt 00:00:33]} c5 {[%clk 00:18:02]}
{[%emt 00:00:33]} 13. dxc6 {[%clk 00:12:53]} {[%emt 00:00:42]} bxc6 {[%clk
00:18:05]} {[%emt 00:00:02]} 14. Be3 {[%clk 00:12:25]} {[%emt 00:00:33]} c5
{[%clk 00:17:29]} {[%emt 00:00:41]} 15. Bg5 {[%clk 00:11:44]} {[%emt 00:00:45]}
h6 {[%clk 00:16:58]} {[%emt 00:00:36]} 16. Bxf6 {[%clk 00:11:36]} {[%emt
00:00:14]} Bxf6 {[%clk 00:15:57]} {[%emt 00:01:05]} 17. f4 {[%clk 00:11:26]}
{[%emt 00:00:15]} exf4 {[%clk 00:14:43]} {[%emt 00:01:20]} 18. gxf4 {[%clk
00:10:01]} {[%emt 00:01:30]} Rb8 {[%clk 00:13:28]} {[%emt 00:01:19]} 19. Rb1
{[%clk 00:07:43]} {[%emt 00:02:23]} Bg7 {[%clk 00:13:12]} {[%emt 00:00:22]} 20.
Nd5 {[%clk 00:07:05]} {[%emt 00:00:42]} Kh7 {[%clk 00:12:35]} {[%emt 00:00:41]}
21. f5 {[%clk 00:05:45]} {[%emt 00:01:26]} Be5 {[%clk 00:09:27]} {[%emt
00:03:13]} 22. Qg4 {[%clk 00:04:25]} {[%emt 00:01:22]} Rg8 {[%clk 00:08:24]}
{[%emt 00:01:10]} 23. f6 {[%clk 00:04:03]} {[%emt 00:00:28]} Ne6 {[%clk
00:07:03]} {[%emt 00:01:26]} 24. b4 {[%clk 00:03:29]} {[%emt 00:00:39]} Nc7
{[%clk 00:06:21]} {[%emt 00:00:47]} 25. Ne7 {[%clk 00:03:28]} {[%emt 00:00:05]}
h5 {[%clk 00:03:06]} {[%emt 00:03:20]} 26. Qf3 {[%clk 00:03:11]} {[%emt
00:00:22]} Qd7 {[%clk 00:02:56]} {[%emt 00:00:15]} 27. Nxg8 {[%clk 00:03:08]}
{[%emt 00:00:08]} Rxg8 {[%clk 00:03:00]} {[%emt 00:00:02]} 28. bxc5 {[%clk
00:03:05]} {[%emt 00:00:08]} Bd4+ {[%clk 00:02:43]} {[%emt 00:00:22]} 29. Kh1
{[%clk 00:03:08]} {[%emt 00:00:01]} Bxc5 {[%clk 00:02:47]} {[%emt 00:00:02]} 30.
Rbd1 {[%clk 00:03:00]} {[%emt 00:00:12]} Ne6 {[%clk 00:02:23]} {[%emt
00:00:29]} 31. e5 {[%clk 00:02:35]} {[%emt 00:00:30]} Nd4 {[%clk 00:02:24]}
{[%emt 00:00:05]} 32. Qe4 {[%clk 00:02:25]} {[%emt 00:00:14]} Re8 {[%clk
00:02:21]} {[%emt 00:00:08]} 33. Rfe1 {[%clk 00:02:13]} {[%emt 00:00:17]} Rxe5
{[%clk 00:02:22]} {[%emt 00:00:04]} 34. Qa8 {[%clk 00:01:58]} {[%emt 00:00:20]}
Qf5 {[%clk 00:01:19]} {[%emt 00:01:07]} 35. Rxe5 {[%clk 00:01:44]} {[%emt
00:00:19]} Qxe5 {[%clk 00:01:15]} {[%emt 00:00:10]} 36. Qe4 {[%clk 00:01:47]}
{[%emt 00:00:01]} Qxf6 {[%clk 00:01:15]} {[%emt 00:00:06]} 37. Rf1 {[%clk
00:01:46]} {[%emt 00:00:06]} Qe6 {[%clk 00:01:10]} {[%emt 00:00:10]} 38. Qxe6
{[%clk 00:01:48]} {[%emt 00:00:03]} fxe6 {[%clk 00:01:09]} {[%emt 00:00:06]} 39.
Be4 {[%clk 00:01:41]} {[%emt 00:00:11]} Kh6 {[%clk 00:01:11]} {[%emt 00:00:04]}
40. Rf6 {[%clk 00:01:41]} {[%emt 00:00:05]} Kg5 {[%clk 00:00:52]} {[%emt
00:00:23]} 41. Rxg6+ {[%clk 00:01:42]} {[%emt 00:00:04]} Kf4 {[%clk 00:00:55]}
{[%emt 00:00:02]} 42. Bd3 {[%clk 00:01:41]} {[%emt 00:00:05]} Nf5 {[%clk
00:00:51]} {[%emt 00:00:10]} 43. Rxe6 {[%clk 00:01:39]} {[%emt 00:00:07]} Ng3+
{[%clk 00:00:43]} {[%emt 00:00:13]} 44. Kg2 {[%clk 00:01:41]} {[%emt 00:00:02]}
h4 {[%clk 00:00:43]} {[%emt 00:00:06]} 45. a4 {[%clk 00:01:27]} {[%emt
00:00:19]} a5 {[%clk 00:00:47]} 46. Re8 {[%clk 00:01:28]} {[%emt 00:00:03]} Bb4
{[%clk 00:00:49]} {[%emt 00:00:04]} 47. Rh8 {[%clk 00:01:25]} {[%emt 00:00:07]}
Kg5 {[%clk 00:00:48]} {[%emt 00:00:07]} 48. Rg8+ {[%clk 00:01:29]} {[%emt
00:00:01]} Kh6 {[%clk 00:00:49]} {[%emt 00:00:04]} 49. Rh8+ {[%clk 00:01:28]}
{[%emt 00:00:06]} Kg5 {[%clk 00:00:53]} {[%emt 00:00:01]} 50. Rg8+ {[%clk
00:01:22]} {[%emt 00:00:12]} Kh6 {[%clk 00:00:57]} 51. Rb8 {[%clk 00:01:22]}
{[%emt 00:00:04]} Nh5 {[%clk 00:00:55]} {[%emt 00:00:05]} 52. Kf3 {[%clk
00:01:23]} {[%emt 00:00:05]} Nf6 {[%clk 00:00:57]} {[%emt 00:00:03]} 53. Rb6
{[%clk 00:01:20]} {[%emt 00:00:07]} Nd7 {[%clk 00:00:58]} {[%emt 00:00:05]} 54.
Rb7 {[%clk 00:01:04]} {[%emt 00:00:22]} Nc5 {[%clk 00:00:59]} {[%emt 00:00:04]}
55. Rh7+ {[%clk 00:01:07]} {[%emt 00:00:02]} Kg5 {[%clk 00:01:02]} {[%emt
00:00:02]} 56. Ke2 {[%emt 00:01:35]} 1/2-1/2

[Event "Esbjerg Efterår 2021 - Esbjergmesterskabet"]
[Site "Esbjerg, Denmark"]
[Date "2021.10.22"]
[Round "2.7"]
[White "Marcussen, Claus"]
[Black "Dybdal, Frank"]
[Result "1-0"]
[TimeControl "1.-3. 20 min + 5 sek, 4.-7. 90 min + 30 sek"]
[WhiteElo "1543"]
[BlackElo "1687"]

1. f4 {[%clk 00:20:07]} {[%emt 00:00:02]} c5 {[%clk 00:19:47]} {[%emt
00:00:24]} 2. Nf3 {[%clk 00:20:09]} {[%emt 00:00:03]} Nc6 {[%clk 00:19:49]}
{[%emt 00:00:03]} 3. e3 {[%clk 00:20:12]} {[%emt 00:00:02]} Nf6 {[%clk
00:19:28]} {[%emt 00:00:26]} 4. d4 {[%clk 00:20:15]} {[%emt 00:00:02]} e6
{[%clk 00:18:57]} {[%emt 00:00:35]} 5. c3 {[%clk 00:20:18]} {[%emt 00:00:03]}
a6 {[%clk 00:17:54]} {[%emt 00:01:09]} 6. Bd3 {[%clk 00:20:21]} {[%emt
00:00:02]} d5 {[%clk 00:17:22]} {[%emt 00:00:36]} 7. Nbd2 {[%clk 00:20:13]}
{[%emt 00:00:12]} b5 {[%clk 00:16:02]} {[%emt 00:01:25]} 8. Ne5 {[%clk
00:20:15]} {[%emt 00:00:05]} Bb7 {[%clk 00:14:51]} {[%emt 00:01:14]} 9. O-O
{[%clk 00:20:16]} {[%emt 00:00:05]} Rc8 {[%clk 00:13:14]} {[%emt 00:01:42]} 10.
g4 {[%clk 00:20:05]} {[%emt 00:00:17]} Qb6 {[%clk 00:10:57]} {[%emt 00:02:21]}
11. Nxc6 {[%clk 00:19:41]} {[%emt 00:00:29]} Bxc6 {[%clk 00:10:05]} {[%emt
00:00:55]} 12. Qf3 {[%clk 00:19:24]} {[%emt 00:00:23]} h5 {[%clk 00:08:15]}
{[%emt 00:01:55]} 13. g5 {[%clk 00:18:35]} {[%emt 00:00:55]} Nd7 {[%clk
00:07:04]} {[%emt 00:01:17]} 14. f5 {[%clk 00:13:57]} {[%emt 00:04:42]} e5
{[%clk 00:06:38]} {[%emt 00:00:30]} 15. Qh3 {[%clk 00:10:35]} {[%emt 00:03:27]}
cxd4 {[%clk 00:05:26]} {[%emt 00:01:18]} 16. cxd4 {[%clk 00:10:37]} {[%emt
00:00:03]} e4 {[%clk 00:05:15]} {[%emt 00:00:16]} 17. Be2 {[%clk 00:10:35]}
{[%emt 00:00:07]} Be7 {[%clk 00:04:41]} {[%emt 00:00:38]} 18. f6 {[%clk
00:10:03]} {[%emt 00:00:38]} gxf6 {[%clk 00:04:39]} {[%emt 00:00:07]} 19. gxf6
{[%clk 00:10:06]} {[%emt 00:00:02]} Nxf6 {[%clk 00:04:30]} {[%emt 00:00:15]} 20.
Qxc8+ {[%clk 00:10:01]} {[%emt 00:00:09]} Bd8 {[%clk 00:04:27]} {[%emt
00:00:08]} 21. Rxf6 {[%clk 00:09:58]} {[%emt 00:00:09]} 1-0

[Event "Esbjerg Efterår 2021 - Esbjergmesterskabet"]
[Site "Esbjerg, Denmark"]
[Date "2021.10.22"]
[Round "2.8"]
[White "Pommerencke, Lars"]
[Black "Christensen, Joel Nødskov"]
[Result "1/2-1/2"]
[TimeControl "1.-3. 20 min + 5 sek, 4.-7. 90 min + 30 sek"]
[WhiteElo "1630"]
[BlackElo "1404"]

1. e4 {[%clk 00:19:03]} {[%emt 00:00:06]} c5 {[%clk 00:20:01]} {[%emt
00:01:10]} 2. Nf3 {[%clk 00:18:48]} {[%emt 00:00:19]} e6 {[%clk 00:20:02]}
{[%emt 00:00:04]} 3. b4 {[%clk 00:18:32]} {[%emt 00:00:22]} cxb4 {[%clk
00:19:53]} {[%emt 00:00:14]} 4. Bb2 {[%clk 00:18:23]} {[%emt 00:00:14]} Nc6
{[%clk 00:19:55]} {[%emt 00:00:02]} 5. a3 {[%clk 00:18:08]} {[%emt 00:00:20]}
d5 {[%clk 00:19:44]} {[%emt 00:00:17]} 6. exd5 {[%clk 00:17:20]} {[%emt
00:00:53]} Qxd5 {[%clk 00:19:21]} {[%emt 00:00:28]} 7. axb4 {[%clk 00:17:01]}
{[%emt 00:00:24]} Nxb4 {[%clk 00:19:21]} {[%emt 00:00:04]} 8. Nc3 {[%clk
00:16:54]} {[%emt 00:00:13]} Qd8 {[%clk 00:19:19]} {[%emt 00:00:06]} 9. Bc4
{[%clk 00:15:06]} {[%emt 00:01:52]} Nf6 {[%clk 00:19:18]} {[%emt 00:00:07]} 10.
O-O {[%clk 00:15:02]} {[%emt 00:00:10]} Be7 {[%clk 00:19:21]} {[%emt 00:00:03]}
11. d3 {[%clk 00:12:56]} {[%emt 00:02:10]} O-O {[%clk 00:19:19]} {[%emt
00:00:07]} 12. Nd2 {[%clk 00:12:36]} {[%emt 00:00:25]} b6 {[%clk 00:18:32]}
{[%emt 00:00:53]} 13. Nde4 {[%clk 00:12:05]} {[%emt 00:00:35]} Bb7 {[%clk
00:18:14]} {[%emt 00:00:23]} 14. Re1 {[%clk 00:12:07]} {[%emt 00:00:03]} a6
{[%clk 00:17:01]} {[%emt 00:01:18]} 15. Bb3 {[%clk 00:11:31]} {[%emt 00:00:41]}
Qd4 {[%clk 00:16:29]} {[%emt 00:00:38]} 16. Na4 {[%clk 00:11:10]} {[%emt
00:00:26]} Qd8 {[%clk 00:16:24]} {[%emt 00:00:10]} 17. Nxf6+ {[%clk 00:10:57]}
{[%emt 00:00:18]} Bxf6 {[%clk 00:16:23]} {[%emt 00:00:04]} 18. Bxf6 {[%clk
00:10:55]} {[%emt 00:00:08]} Qxf6 {[%clk 00:16:17]} {[%emt 00:00:11]} 19. Nxb6
{[%clk 00:10:56]} {[%emt 00:00:05]} Rad8 {[%clk 00:16:11]} {[%emt 00:00:10]} 20.
Ba4 {[%clk 00:09:56]} {[%emt 00:01:06]} Qg5 {[%clk 00:16:02]} {[%emt 00:00:14]}
21. f3 {[%clk 00:09:07]} {[%emt 00:00:53]} Qc5+ {[%clk 00:15:58]} {[%emt
00:00:07]} 22. Kh1 {[%clk 00:08:51]} {[%emt 00:00:24]} Qxb6 {[%clk 00:15:56]}
{[%emt 00:00:06]} 23. Rb1 {[%clk 00:08:38]} {[%emt 00:00:19]} Qc5 {[%clk
00:15:40]} {[%emt 00:00:21]} 24. Qe2 {[%clk 00:08:20]} {[%emt 00:00:22]} Qd4
{[%clk 00:14:42]} {[%emt 00:01:05]} 25. Qe5 {[%clk 00:07:36]} {[%emt 00:00:48]}
Nxd3 {[%clk 00:12:11]} {[%emt 00:02:35]} 26. Qxd4 {[%clk 00:06:58]} {[%emt
00:00:44]} Rxd4 {[%clk 00:12:09]} {[%emt 00:00:08]} 27. cxd3 {[%clk 00:06:34]}
{[%emt 00:00:28]} Rxa4 {[%clk 00:12:05]} {[%emt 00:00:09]} 28. Rxb7 {[%clk
00:06:32]} {[%emt 00:00:07]} h6 {[%clk 00:12:08]} {[%emt 00:00:02]} 29. h3
{[%clk 00:06:14]} {[%emt 00:00:23]} Ra8 {[%clk 00:12:10]} {[%emt 00:00:02]} 30.
Rc1 {[%clk 00:05:54]} {[%emt 00:00:25]} Rd4 {[%clk 00:12:13]} {[%emt 00:00:03]}
31. Rcc7 {[%clk 00:05:41]} {[%emt 00:00:18]} Rf8 {[%clk 00:12:04]} {[%emt
00:00:13]} 32. Ra7 {[%clk 00:05:44]} {[%emt 00:00:03]} Rd6 {[%clk 00:12:04]}
{[%emt 00:00:05]} 33. d4 {[%clk 00:05:23]} {[%emt 00:00:26]} Rxd4 {[%clk
00:11:59]} {[%emt 00:00:11]} 34. Rxa6 {[%clk 00:05:23]} {[%emt 00:00:05]} Rd1+
{[%clk 00:11:56]} {[%emt 00:00:07]} 35. Kh2 {[%clk 00:05:25]} {[%emt 00:00:02]}
Rd4 {[%clk 00:11:57]} {[%emt 00:00:04]} 36. Raa7 {[%clk 00:05:21]} {[%emt
00:00:09]} g6 {[%clk 00:11:59]} {[%emt 00:00:03]} 37. g4 {[%clk 00:04:53]}
{[%emt 00:00:34]} Kg7 {[%clk 00:12:02]} {[%emt 00:00:02]} 38. Kg3 {[%clk
00:04:46]} {[%emt 00:00:12]} g5 {[%clk 00:12:03]} {[%emt 00:00:05]} 39. h4
{[%clk 00:04:42]} {[%emt 00:00:08]} Kg6 {[%clk 00:12:05]} {[%emt 00:00:02]} 40.
h5+ {[%clk 00:03:35]} {[%emt 00:01:13]} Kg7 {[%clk 00:12:08]} {[%emt 00:00:02]}
41. Rab7 {[%clk 00:03:38]} {[%emt 00:00:02]} Rf4 {[%clk 00:12:08]} {[%emt
00:00:05]} 42. Re7 {[%clk 00:03:41]} {[%emt 00:00:02]} Rf6 {[%clk 00:11:38]}
{[%emt 00:00:35]} 43. Ra7 {[%clk 00:03:44]} {[%emt 00:00:02]} Rf4 {[%clk
00:11:41]} {[%emt 00:00:02]} 44. Rab7 {[%clk 00:03:48]} {[%emt 00:00:02]} Rf6
{[%clk 00:11:34]} {[%emt 00:00:02]} 1/2-1/2

[Event "Esbjerg Efterår 2021 - Esbjergmesterskabet"]
[Site "Esbjerg, Denmark"]
[Date "2021.10.22"]
[Round "2.9"]
[White "Jensen, Lucas"]
[Black "Bekmuhanov, Sauran"]
[Result "0-1"]
[TimeControl "1.-3. 20 min + 5 sek, 4.-7. 90 min + 30 sek"]
[WhiteElo "1372"]
[BlackElo "1623"]

1. e4 {[%clk 00:20:08]} {[%emt 00:00:02]} e5 {[%clk 00:20:09]} 2. Nc3 {[%clk
00:20:11]} {[%emt 00:00:03]} Nc6 {[%clk 00:20:13]} {[%emt 00:00:02]} 3. Bc4
{[%clk 00:20:13]} {[%emt 00:00:02]} Nf6 {[%clk 00:20:08]} {[%emt 00:00:10]} 4.
d3 {[%clk 00:20:13]} {[%emt 00:00:05]} Bc5 {[%clk 00:19:56]} {[%emt 00:00:17]}
5. Na4 {[%clk 00:19:51]} {[%emt 00:00:27]} Bb6 {[%clk 00:19:45]} {[%emt
00:00:16]} 6. Nxb6 {[%clk 00:19:25]} {[%emt 00:00:31]} axb6 {[%clk 00:19:47]}
{[%emt 00:00:02]} 7. f4 {[%clk 00:19:28]} {[%emt 00:00:03]} d5 {[%clk
00:19:27]} {[%emt 00:00:24]} 8. exd5 {[%clk 00:18:58]} {[%emt 00:00:35]} Nxd5
{[%clk 00:19:18]} {[%emt 00:00:14]} 9. fxe5 {[%clk 00:18:17]} {[%emt 00:00:46]}
Nxe5 {[%clk 00:18:44]} {[%emt 00:00:38]} 10. Qe2 {[%clk 00:18:08]} {[%emt
00:00:15]} O-O {[%clk 00:18:42]} {[%emt 00:00:08]} 11. Bxd5 {[%clk 00:17:32]}
{[%emt 00:00:40]} Qxd5 {[%clk 00:18:34]} {[%emt 00:00:14]} 12. b3 {[%clk
00:16:41]} {[%emt 00:00:57]} Re8 {[%clk 00:18:21]} {[%emt 00:00:16]} 13. Qd2
{[%clk 00:15:58]} {[%emt 00:00:49]} Nf3+ {[%clk 00:18:18]} {[%emt 00:00:09]}
0-1

[Event "Esbjerg Efterår 2021 - Esbjergmesterskabet"]
[Site "Esbjerg, Denmark"]
[Date "2021.10.23"]
[Round "4.1"]
[White "Medhus, Vitus Bondo"]
[Black "Pedersen, Nicolai Vesterbæk"]
[Result "0-1"]
[TimeControl "1.-3. 20 min + 5 sek, 4.-7. 90 min + 30 sek"]
[WhiteElo "1875"]
[BlackElo "2343"]

1. e4 {[%clk 01:30:58]} {[%emt 00:00:02]} e5 {[%clk 01:30:48]} {[%emt
00:00:13]} 2. Nf3 {[%clk 01:31:20]} {[%emt 00:00:07]} Nf6 {[%clk 01:31:06]}
{[%emt 00:00:12]} 3. Nxe5 {[%clk 01:31:08]} {[%emt 00:00:42]} d6 {[%clk
01:31:25]} {[%emt 00:00:11]} 4. Nf3 {[%clk 01:31:29]} {[%emt 00:00:08]} Nxe4
{[%clk 01:31:44]} {[%emt 00:00:11]} 5. Nc3 {[%clk 01:31:50]} {[%emt 00:00:09]}
Nxc3 {[%clk 01:31:44]} {[%emt 00:00:30]} 6. dxc3 {[%clk 01:32:07]} {[%emt
00:00:13]} Be7 {[%clk 01:31:59]} {[%emt 00:00:14]} 7. Bd3 {[%clk 01:30:42]}
{[%emt 00:01:56]} Nd7 {[%clk 01:28:29]} {[%emt 00:04:01]} 8. Bf4 {[%clk
01:28:47]} {[%emt 00:02:24]} Nc5 {[%clk 01:23:20]} {[%emt 00:05:39]} 9. Qd2
{[%clk 01:24:28]} {[%emt 00:04:50]} Be6 {[%clk 01:21:19]} {[%emt 00:02:31]} 10.
Nd4 {[%clk 01:22:01]} {[%emt 00:02:57]} Qd7 {[%clk 01:20:35]} {[%emt 00:01:13]}
11. Nxe6 {[%clk 01:15:03]} {[%emt 00:07:28]} Nxd3+ {[%clk 01:14:47]} {[%emt
00:06:19]} 12. cxd3 {[%clk 01:12:54]} {[%emt 00:02:39]} Qxe6+ {[%clk 01:12:31]}
{[%emt 00:02:41]} 13. Qe3 {[%clk 01:11:38]} {[%emt 00:01:50]} O-O {[%clk
01:10:16]} {[%emt 00:02:45]} 14. O-O-O {[%clk 01:10:32]} {[%emt 00:01:35]} Qxa2
{[%clk 00:49:41]} {[%emt 00:21:05]} 15. Qxe7 {[%clk 01:07:04]} {[%emt
00:03:59]} Qa1+ {[%clk 00:48:38]} {[%emt 00:01:33]} 16. Kc2 {[%clk 01:07:27]}
{[%emt 00:00:06]} Qa4+ {[%clk 00:48:59]} {[%emt 00:00:10]} 17. Kb1 {[%clk
01:05:09]} {[%emt 00:02:47]} Qxf4 {[%clk 00:49:19]} {[%emt 00:00:11]} 18. Qxc7
{[%clk 01:02:36]} {[%emt 00:03:04]} Qxf2 {[%clk 00:48:11]} {[%emt 00:01:37]} 19.
Qxd6 {[%clk 01:01:36]} {[%emt 00:01:29]} Qxg2 {[%clk 00:45:14]} {[%emt
00:03:27]} 20. Rhg1 {[%clk 01:01:00]} {[%emt 00:01:06]} Qc6 {[%clk 00:45:14]}
{[%emt 00:00:31]} 21. Qg3 {[%clk 01:00:51]} {[%emt 00:00:39]} g6 {[%clk
00:40:46]} {[%emt 00:04:57]} 22. h4 {[%clk 01:01:09]} {[%emt 00:00:12]} Rae8
{[%clk 00:31:45]} {[%emt 00:09:32]} 23. Rde1 {[%clk 00:57:58]} {[%emt
00:03:42]} Qd5 {[%clk 00:30:25]} {[%emt 00:01:49]} 24. d4 {[%clk 00:57:36]}
{[%emt 00:00:52]} Re4 {[%clk 00:27:59]} {[%emt 00:02:55]} 25. Qg5 {[%clk
00:56:19]} {[%emt 00:01:48]} Qe6 {[%clk 00:21:09]} {[%emt 00:07:20]} 26. Ref1
{[%clk 00:54:56]} {[%emt 00:01:53]} Re2 {[%clk 00:20:29]} {[%emt 00:01:09]} 27.
h5 {[%clk 00:52:15]} {[%emt 00:03:11]} Qb3 {[%clk 00:16:12]} {[%emt 00:04:46]}
28. Qc1 {[%clk 00:52:37]} {[%emt 00:00:09]} Rfe8 {[%clk 00:16:12]} {[%emt
00:00:31]} 29. h6 {[%clk 00:49:58]} {[%emt 00:03:08]} Qc4 {[%clk 00:12:27]}
{[%emt 00:04:16]} 30. Re1 {[%clk 00:49:22]} {[%emt 00:01:06]} Qd3+ {[%clk
00:12:27]} {[%emt 00:00:29]} 31. Ka2 {[%clk 00:49:22]} {[%emt 00:00:31]} R8e6
{[%clk 00:12:12]} {[%emt 00:00:43]} 32. Rxe2 {[%clk 00:49:23]} {[%emt
00:00:31]} Qxe2 {[%clk 00:06:54]} {[%emt 00:05:47]} 33. Qf4 {[%clk 00:44:15]}
{[%emt 00:05:39]} Ra6+ {[%emt 00:01:16]} 0-1

[Event "Esbjerg Efterår 2021 - Esbjergmesterskabet"]
[Site "Esbjerg, Denmark"]
[Date "2021.10.23"]
[Round "4.2"]
[White "Rødgaard, John"]
[Black "Mortensen, Henrik"]
[Result "1-0"]
[TimeControl "1.-3. 20 min + 5 sek, 4.-7. 90 min + 30 sek"]
[WhiteElo "2319"]
[BlackElo "1991"]

1. c4 {[%clk 01:30:41]} {[%emt 00:00:16]} c5 {[%clk 01:30:52]} {[%emt
00:00:10]} 2. Nf3 {[%clk 01:30:07]} {[%emt 00:01:03]} Nc6 {[%clk 01:31:11]}
{[%emt 00:00:12]} 3. d4 {[%clk 01:30:03]} {[%emt 00:00:35]} cxd4 {[%clk
01:29:47]} {[%emt 00:01:54]} 4. Nxd4 {[%clk 01:30:22]} {[%emt 00:00:09]} Nf6
{[%clk 01:30:04]} {[%emt 00:00:14]} 5. Nc3 {[%clk 01:30:10]} {[%emt 00:00:42]}
g6 {[%clk 01:30:20]} {[%emt 00:00:15]} 6. e4 {[%clk 01:29:58]} {[%emt
00:00:42]} d6 {[%clk 01:30:31]} {[%emt 00:00:19]} 7. Be2 {[%clk 01:27:47]}
{[%emt 00:02:39]} Bg7 {[%clk 01:30:50]} {[%emt 00:00:12]} 8. Be3 {[%clk
01:27:33]} {[%emt 00:00:43]} O-O {[%clk 01:29:45]} {[%emt 00:01:36]} 9. f3
{[%clk 01:15:26]} {[%emt 00:12:37]} Nxd4 {[%clk 01:25:17]} {[%emt 00:04:59]} 10.
Bxd4 {[%clk 01:15:29]} {[%emt 00:00:26]} Be6 {[%clk 01:25:31]} {[%emt
00:00:16]} 11. Qd2 {[%clk 01:02:05]} {[%emt 00:13:53]} a6 {[%clk 01:22:03]}
{[%emt 00:03:59]} 12. Rc1 {[%clk 00:41:11]} {[%emt 00:21:23]} Rc8 {[%clk
01:14:48]} {[%emt 00:07:46]} 13. b3 {[%clk 00:38:06]} {[%emt 00:03:35]} Nd7
{[%clk 01:08:26]} {[%emt 00:06:52]} 14. Be3 {[%clk 00:33:07]} {[%emt 00:05:29]}
Nf6 {[%clk 01:05:01]} {[%emt 00:03:55]} 15. O-O {[%clk 00:30:46]} {[%emt
00:02:50]} Re8 {[%clk 00:53:54]} {[%emt 00:11:38]} 16. Rc2 {[%clk 00:27:26]}
{[%emt 00:03:50]} Qa5 {[%clk 00:49:31]} {[%emt 00:04:53]} 17. Rfc1 {[%clk
00:26:21]} {[%emt 00:01:35]} Qh5 {[%clk 00:48:09]} {[%emt 00:01:52]} 18. Nd5
{[%clk 00:22:00]} {[%emt 00:04:51]} Nd7 {[%clk 00:42:43]} {[%emt 00:05:57]} 19.
h3 {[%clk 00:15:55]} {[%emt 00:06:33]} g5 {[%clk 00:27:37]} {[%emt 00:15:36]}
20. Bxg5 {[%clk 00:12:09]} {[%emt 00:04:14]} Bxh3 {[%clk 00:25:50]} {[%emt
00:02:19]} 21. f4 {[%clk 00:10:09]} {[%emt 00:02:31]} Qg6 {[%clk 00:23:41]}
{[%emt 00:02:39]} 22. f5 {[%clk 00:09:14]} {[%emt 00:01:24]} Bd4+ {[%clk
00:23:04]} {[%emt 00:01:08]} 23. Kh2 {[%clk 00:07:21]} {[%emt 00:02:22]} Qg7
{[%clk 00:21:23]} {[%emt 00:02:12]} 24. gxh3 {[%clk 00:06:34]} {[%emt
00:01:17]} Nc5 {[%clk 00:18:04]} {[%emt 00:03:49]} 25. Bf3 {[%clk 00:06:11]}
{[%emt 00:00:52]} 1-0